fUSD/lending_fUSD_20250421
["ID","MTS","AMOUNT","RATE_DAILY","PERIOD"]
[358483134,1745202643244,-748.9916381,0.00063014,120]
[358483135,1745202643253,-748.9916381,0.00063014,120]
[358483136,1745202643262,-748.9916381,0.00063014,120]
[358483137,1745202643271,-748.9916381,0.00063014,120]
[358483138,1745202643280,-748.9916381,0.00063014,120]
[358483139,1745202643289,-748.9916381,0.00063014,120]
[358483140,1745202643298,-748.9916381,0.00063014,120]
[358483141,1745202643307,-748.9916381,0.00063014,120]
[358483142,1745202643315,-748.9916381,0.00063014,120]
[358483143,1745202643324,-748.9916381,0.00063014,120]
[358483144,1745202643333,-748.9916381,0.00063014,120]
[358483145,1745202643342,-748.9916381,0.00063014,120]
[358483146,1745202643351,-748.9916381,0.00063014,120]
[358483147,1745202643360,-748.9916381,0.00063014,120]
[358483148,1745202643370,-748.9916381,0.00063014,120]
[358483149,1745202643379,-748.9916381,0.00063014,120]
[358483150,1745202643388,-748.9916381,0.00063014,120]
[358483151,1745202643397,-748.9916381,0.00063014,120]
[358483152,1745202643406,-748.9916381,0.00063014,120]
[358483153,1745202643415,-748.9916381,0.00063014,120]
[358483154,1745202643424,-748.9916381,0.00063014,120]
[358483155,1745202643433,-748.9916381,0.00063014,120]
[358483156,1745202643443,-748.9916381,0.00063014,120]
[358483157,1745202643453,-748.9916381,0.00063014,120]
[358483158,1745202643462,-748.9916381,0.00063014,120]
[358483159,1745202643471,-748.9916381,0.00063014,120]
[358483160,1745202643481,-748.9916381,0.00063014,120]
[358483161,1745202643490,-748.9916381,0.00063014,120]
[358483162,1745202643499,-748.9916381,0.00063014,120]
[358483163,1745202643509,-748.9916381,0.00063014,120]
[358483164,1745202643518,-748.9916381,0.00063014,120]
[358483165,1745202643526,-748.9916381,0.00063014,120]
[358483166,1745202643535,-748.9916381,0.00063014,120]
[358483167,1745202643544,-748.9916381,0.00063014,120]
[358483168,1745202643553,-748.9916381,0.00063014,120]
[358483169,1745202643562,-748.9916381,0.00063014,120]
[358483170,1745202643572,-748.9916381,0.00063014,120]
[358483171,1745202643581,-748.9916381,0.00063014,120]
[358483172,1745202643590,-748.9916381,0.00063014,120]
[358483173,1745202643599,-748.9916381,0.00063014,120]
[358483174,1745202643611,-748.9916381,0.00063014,120]
[358483175,1745202643621,-748.9916381,0.00063014,120]
[358483176,1745202643630,-748.9916381,0.00063014,120]
[358483177,1745202643639,-748.9916381,0.00063014,120]
[358483178,1745202643649,-748.9916381,0.00063014,120]
[358483179,1745202643658,-748.9916381,0.00063014,120]
[358483180,1745202643667,-748.9916381,0.00063014,120]
[358483181,1745202643677,-748.9916381,0.00063014,120]
[358483183,1745202643686,-748.9916381,0.00063014,120]
[358483185,1745202643695,-748.9916381,0.00063014,120]
[358483186,1745202643705,-748.9916381,0.00063014,120]
[358483187,1745202643714,-748.9916381,0.00063014,120]
[358483188,1745202643723,-748.9916381,0.00063014,120]
[358483189,1745202643733,-700.0,0.00063047,120]
[358483190,1745202643743,-700.0,0.00063081,120]
[358483191,1745202643752,-155.658393,0.000632,60]
[358483192,1745202643761,-168.7,0.00063382,2]
[358483193,1745202643770,-1864.26,0.000634,2]
[358483194,1745202643780,-1117.75,0.000634,2]
[358483196,1745202643789,-223.55,0.000634,2]
[358483198,1745202643798,-308.71,0.000634,60]
[358483200,1745202643807,-496.71,0.000634,2]
[358483202,1745202643816,-700.0,0.00063466,120]
[358483204,1745202643826,-152.22899,0.00063555,120]
[358483206,1745202643835,-151.0,0.00063555,120]
[358483207,1745202643844,-151.0,0.00063555,120]
[358483208,1745202643853,-151.0,0.00063555,120]
[358483209,1745202643862,-153.776174,0.00063555,120]
[358483210,1745202643872,-154.558485,0.00063555,120]
[358483211,1745202643881,-291.627104,0.00063555,120]
[358483212,1745202643890,-2042.920338,0.00063631,120]
[358483213,1745202643900,-1099.981,0.00063716,120]
[358483214,1745202643909,-380.0,0.000638,99]
[358483215,1745202643918,-2377.2109482,0.000639,120]
[358483216,1745202643928,-1100.0,0.00063961,120]
[358483217,1745202643939,-152.0,0.00064,120]
[358483218,1745202643949,-169.0,0.00064,120]
[358483219,1745202643958,-150.0,0.00064155,120]
[358483220,1745202643969,-934.17422698,0.000642,30]
[358483221,1745202643979,-2000.0,0.000642,120]
[358483222,1745202643989,-547.4933637,0.00064318,5]
[358483223,1745202643998,-700.0,0.00064328,120]
[358483224,1745202644007,-155.658393,0.00064334,90]
[358483225,1745202644016,-700.0,0.00064338,120]
[358483226,1745202644026,-327.05,0.00064355,2]
[358483227,1745202644035,-3361.95253337,0.000645,120]
[358483228,1745202644044,-151.0,0.000645,120]
[358483229,1745202644053,-1864.26,0.000646,2]
[358483230,1745202644062,-1117.75,0.000646,2]
[358483231,1745202644071,-496.71,0.000646,2]
[358483232,1745202644080,-158.125752,0.00064718,90]
[358483233,1745202644089,-423.99,0.000648,120]
[358483234,1745202644098,-691.70985217,0.000648,120]
[358483235,1745202644107,-1100.0,0.00064823,120]
[358483236,1745202644225,-17036.615096,0.00064854,5]
[358483237,1745202644235,-500.0,0.00064973,120]
[358483238,1745202644244,-17036.615096,0.0006499,5]
[358483239,1745202644253,-1000.0,0.00065,120]
[358483240,1745202644262,-1000.0,0.00065,120]
[358483241,1745202644271,-320.0,0.00065,120]
[358483242,1745202644280,-17883.11080162,0.00065,120]
[358483243,1745202644290,-151.0,0.00065,120]
[358483244,1745202644299,-160.493781,0.00065,120]
[358483245,1745202644308,-160.493781,0.00065,120]
[358483246,1745202644317,-547.4933637,0.0006508,5]
[358483247,1745202644326,-4811.52687206,0.00065085,30]
[358483248,1745202644335,-837.75651266,0.0006509,2]
[358483249,1745202644344,-308.71,0.000651,60]
[358483250,1745202644353,-2000.0,0.000652,120]
[358483251,1745202644362,-700.0,0.0006521,120]
[358483252,1745202644371,-505.948551,0.00065231,120]
[358483253,1745202644381,-2000.0,0.00065231,120]
[358483254,1745202644391,-151.0,0.00065231,120]
[358483255,1745202644400,-859.93081223,0.00065353,120]
[358483256,1745202644409,-649.0,0.000655,30]
[358483257,1745202644418,-150.0,0.00065533,120]
[358483258,1745202644427,-17036.615096,0.0006559,5]
[358483259,1745202644435,-500.0,0.000656,120]
[358483260,1745202644444,-500.0,0.000656,120]
[358483261,1745202644453,-500.0,0.000656,120]
[358483262,1745202644462,-872.0,0.000656,120]
[358483263,1745202644471,-1039.79726149,0.000656,120]
[358483264,1745202644481,-1000.0,0.000656,120]
[358483265,1745202644490,-1500.0,0.000656,120]
[358483266,1745202644499,-186.83434,0.000656,120]
[358483267,1745202644508,-331.876103,0.000656,62]
[358483268,1745202644518,-17036.615096,0.00065623,5]
[358483269,1745202644527,-547.4933637,0.00065623,5]
[358483270,1745202644536,-500.0,0.00065632,60]
[358483271,1745202644546,-1154.68789898,0.00065632,120]
[358483272,1745202644555,-36170.9236,0.00065633,2]
[358483273,1745202644565,-50882.45943654,0.00065633,5]
[358483274,1745202644897,-0.0122772,0.00042418,2]
[358483275,1745202644912,-185.0237228,0.00042418,2]
[358483276,1745202644921,-17264.00094756,0.00065633,5]
[358483277,1745202644930,-1094.9867274,0.00065633,5]
[358483278,1745202644940,-500.0,0.00065642,60]
[358483279,1745202644950,-24665.23516557,0.00065643,120]
[358483280,1745202644962,-27674.94417329,0.00065643,120]
[358483281,1745202644976,-1085.0887011,0.00065643,120]
[358483282,1745202644987,-1746.34,0.00065643,120]
[358483283,1745202644998,-496.93410013,0.00065643,120]
[358483284,1745202645080,1000.0,0.000199,2]
[358483285,1745202645313,-1203.59788836,0.00065643,120]
[358483286,1745202645324,-30543.8,0.00065643,120]
[358483289,1745202646192,-398.35506593,0.00042418,2]
[358483290,1745202646250,-635.839142,0.00042418,2]
[358483291,1745202646303,-1319.72479207,0.00042418,2]
[358483292,1745202646312,-107.40749364,0.00065643,120]
[358483339,1745202696900,2500.0,0.000199,2]
[358483341,1745203747695,7159.808434,7.945e-05,2]
[358483354,1745203831288,-329.76386651,0.000328,2]
[358483355,1745203831298,-217.41504786,0.000329,30]
[358483356,1745203831394,-1881.9234268,0.000329,30]
[358483357,1745203831404,-5612.01424383,0.000366,2]
[358483358,1745203831413,-320.92960795,0.000367,2]
[358483359,1745203831423,-217.44587564,0.000368,2]
[358483360,1745203831432,-151.0,0.00036867,2]
[358483361,1745203831442,-151.0,0.00036867,2]
[358483362,1745203831451,-631.56647807,0.00036924,2]
[358483363,1745203831460,-151.0,0.00037032,2]
[358483364,1745203831469,-151.0,0.00037032,2]
[358483365,1745203831479,-400.0,0.00037202,2]
[358483366,1745203831488,-151.0,0.00037203,2]
[358483367,1745203831498,-151.0,0.00037203,2]
[358483368,1745203831508,-9999.99,0.00037203,2]
[358483369,1745203831517,-320.92960794,0.00042444,2]
[358483370,1745203831527,-4251.78,0.00042444,2]
[358483371,1745203831536,-150.99,0.00042444,30]
[358483372,1745203831546,-1044.988263,0.00046342,2]
[358483373,1745203831555,-300.0,0.00046575,30]
[358483374,1745203831565,-157.27,0.00047581,2]
[358483375,1745203831575,-1000.0,0.00047621,2]
[358483376,1745203831585,-387.82,0.00047621,2]
[358483377,1745203831594,-182.27,0.00047659,2]
[358483378,1745203831604,-150.0,0.00047719,7]
[358483379,1745203831614,-200.0,0.00047743,2]
[358483380,1745203831623,-250.0,0.00047911,120]
[358483381,1745203831633,-163.99,0.00048,120]
[358483382,1745203831642,-550.0,0.00048187,5]
[358483383,1745203831651,-905.89515905,0.00048188,20]
[358483385,1745203831661,-320.92960794,0.00048188,2]
[358483387,1745203831670,-174.89,0.000482,45]
[358483388,1745203831679,-174.89,0.000482,45]
[358483389,1745203831689,-174.89,0.000482,45]
[358483390,1745203831698,-174.89,0.000482,45]
[358483391,1745203831707,-174.89,0.000482,45]
[358483392,1745203831716,-174.89,0.000482,45]
[358483393,1745203831725,-174.89,0.000482,45]
[358483394,1745203831734,-174.89,0.000482,45]
[358483395,1745203831743,-174.89,0.000482,45]
[358483396,1745203831752,-174.89,0.000482,45]
[358483397,1745203831761,-174.89,0.000482,45]
[358483398,1745203831770,-174.89,0.000482,45]
[358483399,1745203831780,-839.0,0.00048287,4]
[358483400,1745203831789,-431749.22884506,0.00048287,60]
[358483401,1745203831800,-10845.35577768,0.00048287,60]
[358483402,1745203831811,-64872.51320033,0.00048287,60]
[358483403,1745203831822,-586.90217693,0.00048287,60]
[358483404,1745203831831,-1099.98,0.00048288,83]
[358483405,1745203831840,-1000.39253294,0.00048341,15]
[358483406,1745203831849,-700.0,0.00048575,30]
[358483407,1745203831858,-257.42,0.00048688,4]
[358483408,1745203831868,-1100.0,0.00048935,30]
[358483409,1745203831876,-700.0,0.00049002,30]
[358483410,1745203831886,-500.0,0.00049215,30]
[358483411,1745203831895,-988.79258214,0.00049231,30]
[358483412,1745203831904,-700.0,0.00049255,30]
[358483413,1745203831913,-306.0,0.00049315,30]
[358483414,1745203831922,-1100.0,0.00049497,30]
[358483415,1745203831931,-700.0,0.0004962,30]
[358483416,1745203831940,-150.0,0.00049624,120]
[358483417,1745203831949,-1100.0,0.00049658,30]
[358483418,1745203831959,-700.0,0.00049761,30]
[358483419,1745203831968,-933.33010342,0.00049955,30]
[358483421,1745203837480,-634.00114081,0.00048188,15]
[358483422,1745203837586,-5297.64973229,0.00048188,15]
[358483423,1745203837596,-500.0,0.00048286,120]
[358483424,1745203837605,-500.0,0.00048286,120]
[358483425,1745203837614,-500.0,0.00048286,120]
[358483426,1745203837623,-500.0,0.00048286,120]
[358483427,1745203837632,-500.0,0.00048286,120]
[358483428,1745203837641,-478.64561102,0.00048286,120]
[358483429,1745203837650,-28.12818751,0.00049955,30]
[358483430,1745203837659,-1082.54158,0.0005,120]
[358483431,1745203837669,-1100.0,0.00050364,60]
[358483432,1745203837678,-1100.0,0.00050642,60]
[358483433,1745203837688,-620.3819362,0.00050842,60]
[358483434,1745203837698,-1000.39253289,0.00050893,15]
[358483435,1745203837708,-151.0,0.000509,120]
[358483436,1745203837717,-700.0,0.00050931,60]
[358483437,1745203837729,-770.0,0.00051124,10]
[358483438,1745203837738,-700.0,0.00051139,60]
[358483439,1745203837748,-1100.0,0.00051321,60]
[358483440,1745203837757,-700.0,0.00051498,60]
[358483441,1745203837767,-157.0,0.00052,120]
[358483442,1745203837776,-604.0,0.00052,120]
[358483443,1745203837786,-150.55,0.00052051,2]
[358483444,1745203837795,-500.0,0.00053424,30]
[358483445,1745203837805,-1000.39253289,0.00053446,15]
[358483446,1745203837814,-1100.0,0.00053499,60]
[358483447,1745203837825,-1000.0,0.00053574,120]
[358483448,1745203837835,-946.78563424,0.000537,2]
[358483449,1745203837846,-151.0,0.000538,120]
[358483450,1745203837856,-198.84,0.00053806,2]
[358483451,1745203837868,-1100.0,0.00053863,60]
[358483452,1745203837877,-194.11105237,0.00053972,32]
[358483453,1745203837887,-1100.0,0.00054029,60]
[358483454,1745203837896,-1100.0,0.00054097,60]
[358483455,1745203837906,-1077.0,0.00054241,10]
[358483456,1745203837916,-439.65983743,0.00054247,120]
[358483457,1745203837926,-174.89,0.000545,54]
[358483458,1745203837935,-174.89,0.000545,54]
[358483466,1745203838076,-174.89,0.000545,54]
[358483469,1745203838135,-174.89,0.000545,54]
[358483471,1745203838145,-174.89,0.000545,54]
[358483473,1745203838154,-174.89,0.000545,54]
[358483475,1745203838164,-174.89,0.000545,54]
[358483477,1745203838173,-174.89,0.000545,54]
[358483479,1745203838182,-174.89,0.000545,54]
[358483481,1745203838191,-174.89,0.000545,54]
[358483483,1745203838200,-174.89,0.000545,54]
[358483485,1745203838209,-174.89,0.000545,54]
[358483487,1745203838221,-174.89,0.000545,54]
[358483489,1745203838231,-174.89,0.000545,54]
[358483491,1745203838240,-174.89,0.000545,54]
[358483492,1745203838248,-174.89,0.000545,54]
[358483494,1745203838258,-174.89,0.000545,54]
[358483496,1745203838267,-174.89,0.000545,54]
[358483498,1745203838276,-174.89,0.000545,54]
[358483500,1745203838285,-174.89,0.000545,54]
[358483502,1745203838294,-174.89,0.000545,54]
[358483504,1745203838303,-174.89,0.000545,54]
[358483506,1745203838313,-174.89,0.000545,54]
[358483507,1745203838322,-174.89,0.000545,54]
[358483509,1745203838331,-155.462647,0.00054575,54]
[358483511,1745203838340,-155.462647,0.000546,54]
[358483512,1745203838349,-154.311,0.000546,54]
[358483513,1745203838359,-700.0,0.00054782,60]
[358483514,1745203838367,-500.0,0.00054795,120]
[358483515,1745203838377,-170.86945282,0.00054795,120]
[358483516,1745203838388,-155.462647,0.000548,2]
[358483517,1745203838398,-156.02,0.0005493,120]
[358483518,1745203838408,-155.462647,0.0005494,3]
[358483519,1745203838419,-151.0,0.00055,120]
[358483520,1745203838430,-700.0,0.00055096,120]
[358483521,1745203838439,-700.0,0.00055242,120]
[358483522,1745203838448,-1100.0,0.0005529,120]
[358483523,1745203838457,-500.0,0.00055328,120]
[358483524,1745203838466,-588.0,0.000556,120]
[358483525,1745203838475,-500.0,0.00055675,120]
[358483526,1745203838484,-1100.0,0.00055874,120]
[358483527,1745203838493,-1000.39253289,0.00055998,15]
[358483528,1745203838502,-213.83,0.00056226,120]
[358483529,1745203838511,-23900.0,0.00056243,2]
[358483530,1745203838520,-151.0,0.00056265,120]
[358483531,1745203838531,-1100.0,0.0005661,120]
[358483532,1745203838540,-2000.0,0.000567,90]
[358483533,1745203838549,-151.0,0.000567,120]
[358483534,1745203838558,-9292.09,0.0005683,2]
[358483535,1745203838567,-268.2,0.00056849,30]
[358483536,1745203838576,-1000.0,0.00057361,2]
[358483537,1745203838585,-1000.0,0.00057361,2]
[358483538,1745203838594,-1000.0,0.00057361,2]
[358483539,1745203838603,-1000.0,0.00057361,2]
[358483540,1745203838612,-1000.0,0.00057361,2]
[358483541,1745203838622,-1000.0,0.00057361,2]
[358483542,1745203838632,-1000.0,0.00057361,2]
[358483543,1745203838641,-1000.0,0.00057361,2]
[358483544,1745203838650,-1000.0,0.00057361,2]
[358483545,1745203838659,-1000.0,0.00057361,2]
[358483546,1745203838668,-1000.0,0.00057361,2]
[358483547,1745203838677,-1000.0,0.00057361,2]
[358483548,1745203838686,-700.0,0.00057486,120]
[358483549,1745203838695,-151.0,0.0005753,120]
[358483550,1745203838704,-500.0,0.00057534,120]
[358483551,1745203838713,-500.0,0.00057534,120]
[358483552,1745203838723,-500.0,0.00057534,120]
[358483553,1745203838734,-500.0,0.00057534,120]
[358483554,1745203838743,-500.0,0.00057534,120]
[358483555,1745203838752,-1509.0,0.00057547,10]
[358483556,1745203838762,-499.42933006,0.00057711,14]
[358483557,1745203838772,-1100.0,0.00057724,120]
[358483558,1745203838781,-2164.0,0.00057895,120]
[358483559,1745203838790,-500.0,0.00057895,120]
[358483560,1745203838800,-861.0,0.00057895,120]
[358483561,1745203838813,-500.0,0.00057895,120]
[358483562,1745203838822,-500.0,0.00057895,120]
[358483563,1745203838831,-500.0,0.00057895,120]
[358483564,1745203838840,-150.0,0.00057895,2]
[358483565,1745203838850,-250.0,0.00057895,2]
[358483566,1745203838859,-2164.0,0.00057922,120]
[358483567,1745203838869,-500.0,0.00057922,120]
[358483568,1745203838878,-861.0,0.00057922,120]
[358483569,1745203838887,-500.0,0.00057922,120]
[358483570,1745203838896,-500.0,0.00057922,120]
[358483571,1745203838906,-500.0,0.00057922,120]
[358483572,1745203838915,-150.0,0.00057947,30]
[358483573,1745203838925,-797.18,0.00057947,30]
[358483574,1745203838936,-150.0,0.00057947,30]
[358483575,1745203838946,-692.78,0.00057947,30]
[358483576,1745203838955,-150.0,0.00057947,30]
[358483577,1745203838965,-150.0,0.00057947,30]
[358483578,1745203838976,-797.18,0.00057947,30]
[358483579,1745203838987,-797.18,0.00057947,30]
[358483580,1745203839001,-690.59,0.00057947,30]
[358483581,1745203839011,-2164.0,0.0005795,120]
[358483582,1745203839023,-326.87598658,0.0005795,120]
[358483583,1745203839033,-861.0,0.0005795,120]
[358483584,1745203839043,-500.0,0.0005795,120]
[358483585,1745203839053,-500.0,0.0005795,120]
[358483586,1745203839063,-357.75242315,0.0005795,120]
[358483587,1745203839076,-2164.0,0.00057977,120]
[358483588,1745203839086,-861.0,0.00057977,120]
[358483589,1745203839096,-500.0,0.00057977,120]
[358483590,1745203839105,-500.0,0.00057977,120]
[358483591,1745203839114,-2164.0,0.00058005,120]
[358483592,1745203839123,-861.0,0.00058005,120]
[358483593,1745203839132,-500.0,0.00058005,120]
[358483594,1745203839142,-500.0,0.00058005,120]
[358483595,1745203839153,-1100.0,0.00058015,120]
[358483596,1745203839163,-2164.0,0.00058032,120]
[358483597,1745203839172,-861.0,0.00058032,120]
[358483598,1745203839181,-500.0,0.00058032,120]
[358483599,1745203839191,-500.0,0.00058032,120]
[358483600,1745203839200,-2164.0,0.00058059,120]
[358483602,1745203839209,-861.0,0.00058059,120]
[358483604,1745203839218,-500.0,0.00058059,120]
[358483605,1745203839226,-500.0,0.00058059,120]
[358483606,1745203839235,-2164.0,0.00058087,120]
[358483607,1745203839244,-861.0,0.00058087,120]
[358483608,1745203839253,-500.0,0.00058087,120]
[358483609,1745203839262,-500.0,0.00058087,120]
[358483610,1745203839270,-244.33491417,0.00058095,120]
[358483611,1745203839279,-2164.0,0.00058114,120]
[358483612,1745203839288,-861.0,0.00058114,120]
[358483613,1745203839297,-303.85266808,0.00058114,120]
[358483615,1745203839306,-500.0,0.00058114,120]
[358483616,1745203839316,-700.0,0.00058115,120]
[358483618,1745203839325,-2164.0,0.00058142,120]
[358483621,1745203839334,-861.0,0.00058142,120]
[358483622,1745203839343,-500.0,0.00058142,120]
[358483623,1745203839353,-1000.0,0.00058151,20]
[358483624,1745203839362,-2164.0,0.00058169,120]
[358483625,1745203839371,-861.0,0.00058169,120]
[358483626,1745203839380,-181.52508164,0.00058169,120]
[358483627,1745203839389,-2164.0,0.00058196,120]
[358483628,1745203839398,-861.0,0.00058196,120]
[358483629,1745203839407,-2164.0,0.00058224,120]
[358483630,1745203839416,-861.0,0.00058224,120]
[358483631,1745203839425,-2164.0,0.00058251,120]
[358483632,1745203839434,-861.0,0.00058251,120]
[358483633,1745203839443,-2164.0,0.00058279,120]
[358483634,1745203839453,-861.0,0.00058279,120]
[358483635,1745203839462,-1000.0,0.00058288,20]
[358483636,1745203839471,-152.86,0.00058305,120]
[358483637,1745203839480,-2164.0,0.00058306,120]
[358483638,1745203839489,-861.0,0.00058306,120]
[358483639,1745203839498,-2164.0,0.00058333,120]
[358483640,1745203839507,-861.0,0.00058333,120]
[358483641,1745203839516,-2164.0,0.00058361,120]
[358483642,1745203839525,-861.0,0.00058361,120]
[358483643,1745203839534,-2164.0,0.00058388,120]
[358483644,1745203839544,-861.0,0.00058388,120]
[358483645,1745203839554,-2164.0,0.00058416,120]
[358483646,1745203839564,-861.0,0.00058416,120]
[358483647,1745203839573,-1000.0,0.00058425,20]
[358483648,1745203839582,-2164.0,0.00058443,120]
[358483649,1745203839591,-861.0,0.00058443,120]
[358483650,1745203839600,-2164.0,0.0005847,120]
[358483651,1745203839609,-861.0,0.0005847,120]
[358483652,1745203839618,-2164.0,0.00058498,120]
[358483653,1745203839627,-861.0,0.00058498,120]
[358483654,1745203839637,-2180.5139377,0.00058525,120]
[358483655,1745203839646,-882.31029925,0.00058525,120]
[358483656,1745203839655,-1000.39253289,0.0005855,15]
[358483657,1745203839664,-1000.0,0.00058562,20]
[358483658,1745203839673,-634.0,0.00058562,20]
[358483659,1745203839682,-1100.0,0.00058581,120]
[358483660,1745203839691,-150.0,0.00058768,120]
[358483661,1745203839701,-151.0,0.00058795,120]
[358483662,1745203839710,-700.0,0.00058985,120]
[358483663,1745203839720,-503.26592607,0.00059452,15]
[358483664,1745203839731,-2000.0,0.000595,90]
[358483665,1745203839739,-1000.0,0.00059527,120]
[358483666,1745203839748,-151.0,0.000596,120]
[358483667,1745203839759,-700.0,0.00059754,120]
[358483668,1745203839770,-1100.0,0.00059793,120]
[358483669,1745203839779,-348.76,0.00059832,2]
[358483670,1745203839788,-1100.0,0.00059861,120]
[358483671,1745203839798,-157.87220748,0.000599,120]
[358483672,1745203839808,-157.87220745,0.000599,120]
[358483673,1745203839818,-157.87220745,0.000599,120]
[358483674,1745203839827,-3073.0,0.0006,30]
[358483675,1745203839836,-219.41,0.0006,120]
[358483676,1745203839845,-150.0,0.0006,2]
[358483677,1745203839854,-17883.11080163,0.0006,120]
[358483678,1745203839863,-151.0,0.00060059,120]
[358483679,1745203839872,-1100.0,0.00060229,120]
[358483680,1745203839884,-529.22926207,0.00060279,120]
[358483681,1745203839894,-700.0,0.00060573,120]
[358483682,1745203839904,-755.63063361,0.00060636,120]
[358483683,1745203839914,-1535.54,0.000607,2]
[358483684,1745203839924,-307.11,0.000607,2]
[358483685,1745203839936,-1542.33,0.000607,2]
[358483686,1745203839946,-308.46,0.000607,2]
[358483687,1745203839955,-500.0,0.00060753,120]
[358483688,1745203839965,-3546.8692856,0.00060809,28]
[358483689,1745203839976,-174.89,0.000609,63]
[358483690,1745203839987,-174.89,0.000609,63]
[358483691,1745203840001,-174.89,0.000609,63]
[358483692,1745203840012,-174.89,0.000609,63]
[358483693,1745203840021,-174.89,0.000609,63]
[358483694,1745203840032,-174.89,0.000609,63]
[358483695,1745203840043,-174.89,0.000609,63]
[358483696,1745203840053,-174.89,0.000609,63]
[358483697,1745203840062,-174.89,0.000609,63]
[358483698,1745203840073,-174.89,0.000609,63]
[358483699,1745203840083,-174.89,0.000609,63]
[358483700,1745203840092,-174.89,0.000609,63]
[358483701,1745203840101,-174.89,0.000609,63]
[358483702,1745203840110,-174.89,0.000609,63]
[358483703,1745203840119,-174.89,0.000609,63]
[358483704,1745203840128,-174.89,0.000609,63]
[358483705,1745203840138,-174.89,0.000609,63]
[358483706,1745203840148,-174.89,0.000609,63]
[358483707,1745203840158,-174.89,0.000609,63]
[358483708,1745203840169,-174.89,0.000609,63]
[358483709,1745203840178,-174.89,0.000609,63]
[358483710,1745203840187,-174.89,0.000609,63]
[358483711,1745203840197,-174.89,0.000609,63]
[358483712,1745203840206,-174.89,0.000609,63]
[358483713,1745203840217,-248.48213612,0.000609,80]
[358483714,1745203840226,-500.0,0.000609,120]
[358483715,1745203840235,-500.0,0.000609,120]
[358483716,1745203840244,-150.0,0.000609,120]
[358483717,1745203840253,-9000.0,0.000609,22]
[358483718,1745203840262,-155.462647,0.0006092,3]
[358483719,1745203840271,-154.311,0.0006092,3]
[358483720,1745203840280,-500.0,0.00060927,120]
[358483721,1745203840290,-500.0,0.00060927,120]
[358483722,1745203840299,-228.00086056,0.00060927,120]
[358483723,1745203840309,-1100.0,0.00060953,120]
[358483724,1745203840319,-500.0,0.00060955,120]
[358483725,1745203840331,-500.0,0.00060955,120]
[358483726,1745203840341,-500.0,0.00060982,120]
[358483727,1745203840350,-500.0,0.00060982,120]
[358483728,1745203840359,-745.8537,0.00061,120]
[358483729,1745203840368,-500.0,0.0006101,120]
[358483730,1745203840376,-500.0,0.0006101,120]
[358483731,1745203840386,-500.0,0.00061037,120]
[358483732,1745203840395,-500.0,0.00061037,120]
[358483733,1745203840404,-7872.3225022,0.00061055,120]
[358483734,1745203840413,-2112.0,0.00061055,10]
[358483735,1745203840422,-500.0,0.00061064,120]
[358483736,1745203840431,-500.0,0.00061064,120]
[358483737,1745203840441,-500.0,0.00061092,120]
[358483738,1745203840451,-500.0,0.00061092,120]
[358483739,1745203840460,-1000.39253289,0.00061103,15]
[358483740,1745203840468,-569.46056612,0.00061119,120]